bitfinex/quotes_SOLUSD_20260302
["timestamp","ask_amount","ask_price","bid_price","bid_amount"]
[1772489767421,10.77053535,87.46,87.442,0.52847025]
[1772489768135,10.77053535,87.46,87.443,11.43602117]
[1772489768340,0.51012057,87.469,87.443,11.96449142]
[1772489768636,12.8618466,87.468,87.443,11.96449142]
[1772489769036,1.42909406,87.468,87.444,0.52847025]
[1772489769439,1.42907773,87.469,87.444,0.52847025]
[1772489770228,12.86179963,87.469,87.444,0.52847025]
[1772489772035,12.86179963,87.469,87.445,11.43575962]
[1772489772342,0.51012057,87.477,87.446,0.52847025]
[1772489772545,10.77053535,87.48,87.446,0.52847025]
[1772489772546,1.42896337,87.476,87.446,0.52847025]
[1772489772754,28.57532454,87.489,87.431,40.03156774]
[1772489772755,1.42876737,87.488,87.461,0.52847025]
[1772489772926,10.77053535,87.49,87.461,0.52847025]
[1772489773124,1.42875104,87.489,87.461,0.52847025]
[1772489773359,0.51012057,87.469,87.443,0.52847025]
[1772489773655,1.93921463,87.468,87.432,0.52847025]
[1772489774841,11.43288325,87.467,87.434,0.52847025]
[1772489775146,1.42912674,87.466,87.434,0.52847025]
[1772489776038,1.4291104,87.467,87.434,0.52847025]
[1772489776634,1.42899604,87.474,87.441,0.52847025]
[1772489776935,2.20067467,87.474,87.443,0.78808151]
[1772489777134,0.77167863,87.473,87.443,0.78808151]
[1772489777338,10.77053535,87.47,87.443,0.78808151]
[1772489777641,12.19959674,87.47,87.443,0.78808151]
[1772489778349,0.77888909,87.469,87.443,0.78808151]
[1772489778543,1.42909406,87.468,87.443,0.78808151]
[1772489779257,1.42909406,87.468,87.426,0.74039212]
[1772489779258,0.77888909,87.459,87.426,0.74039212]
[1772489779727,0.77888909,87.459,87.431,0.74039212]
[1772489780865,1.42925747,87.458,87.431,0.74039212]
[1772489783544,1.42925747,87.458,87.432,11.43745996]
[1772489783731,1.42925747,87.458,87.433,0.74039212]
[1772489784852,12.2130796,87.457,87.434,11.43719834]
[1772489785043,0.28432314,87.463,87.435,0.74039212]
[1772489785244,0.77888909,87.461,87.435,0.74039212]
[1772489785437,0.77888909,87.459,87.435,0.74039212]
[1772489785637,1.42925747,87.458,87.435,0.74039212]
[1772489787353,0.28432314,87.474,87.45,10.77053535]
[1772489787543,0.28432314,87.472,87.45,11.51092747]
[1772489787737,0.85767255,87.471,87.45,11.51092747]
[1772489787937,0.85767255,87.471,87.45,0.74039212]
[1772489789355,11.43146007,87.478,87.452,0.74039212]
[1772489789550,0.85767255,87.477,87.452,0.74039212]
[1772489790456,0.85767255,87.477,87.451,11.43497501]
[1772489790457,0.77888909,87.519,87.471,0.74039212]
[1772489790758,0.77888909,87.549,87.51,10.77053535]
[1772489791140,0.77888909,87.549,87.53,10.77053535]
[1772489791336,0.77888909,87.549,87.528,11.42490442]
[1772489791534,0.77888909,87.549,87.489,3.69383402]
[1772489791535,0.77888909,87.547,87.51,10.77053535]
[1772489791742,0.77888909,87.541,87.511,0.74039212]
[1772489791953,0.77888909,87.541,87.52,10.77053535]
[1772489792152,0.28432314,87.558,87.52,11.51092747]
[1772489792359,0.77888909,87.551,87.52,11.51092747]
[1772489793157,0.77888909,87.551,87.521,11.42582922]
[1772489794388,0.77888909,87.571,87.541,0.74039212]
[1772489794859,0.28432314,87.565,87.541,0.74039212]
[1772489795042,1.06321223,87.565,87.541,0.74039212]
[1772489795245,0.77888909,87.565,87.541,0.74039212]
[1772489795640,0.28432314,87.564,87.541,0.74039212]
[1772489795942,12.19832664,87.57,87.541,0.74039212]
[1772489796153,12.19832664,87.57,87.543,0.74039212]
[1772489796353,0.77888909,87.569,87.543,0.74039212]
[1772489797851,0.77888909,87.569,87.544,11.42282737]
[1772489799058,0.77888909,87.567,87.534,0.74039212]
[1772489800345,0.77888909,87.567,87.535,11.42400182]
[1772489800543,12.1988466,87.566,87.536,0.74039212]
[1772489801058,0.77888909,87.566,87.536,0.74039212]
[1772489804753,11.41995751,87.566,87.537,11.42374081]
[1772489804966,0.77888909,87.565,87.537,12.16413293]
[1772489806170,0.77888909,87.565,87.538,0.74039212]
[1772489806858,0.77888909,87.565,87.541,0.74039212]
[1772489808456,0.77888909,87.565,87.543,1.01341675]
[1772489808850,1.00981682,87.575,87.551,1.01341675]
[1772489809177,1.00981682,87.578,87.551,1.01341675]
[1772489810364,0.2,87.58,87.561,1.01341675]
[1772489810560,0.2,87.58,87.525,1.1425307]
[1772489810561,1.00981682,87.579,87.541,12.43663558]
[1772489810763,1.00981682,87.579,87.53,1.14246544]
[1772489810764,1.00981682,87.569,87.535,1.01341675]
[1772489810974,1.00981682,87.559,87.521,1.01341675]
[1772489812766,0.2,87.58,87.522,11.42569868]
[1772489812767,1.00981682,87.549,87.522,11.42569868]
[1772489812969,1.00981682,87.541,87.513,12.44018907]
[1772489813278,1.00981682,87.541,87.514,1.01341675]
[1772489814355,10.7421747,87.54,87.513,11.42677232]
[1772489814560,1.00981682,87.539,87.513,11.42677232]
[1772489814760,1.00981682,87.537,87.502,28.57066386]
[1772489815779,1.00981682,87.537,87.512,1.01341675]
[1772489818980,1.00981682,87.537,87.513,11.42687372]
[1772489819166,0.28432314,87.554,87.531,1.01341675]
[1772489819381,1.00981682,87.559,87.531,1.01341675]
[1772489819670,11.42080325,87.56,87.531,1.01341675]
[1772489819671,0.28432314,87.555,87.531,1.01341675]
[1772489820866,1.00981682,87.563,87.541,1.01341675]
[1772489821288,0.28432314,87.562,87.542,11.42308834]
[1772489821491,1.00981682,87.563,87.542,11.42308834]
[1772489821788,10.9421747,87.58,87.551,1.01341675]
[1772489821789,0.2,87.58,87.551,1.01341675]
[1772489822088,0.2,87.58,87.56,10.7421747]
[1772489822388,1.00981682,87.598,87.571,1.01341675]
[1772489822876,1.00981682,87.598,87.57,10.7421747]
[1772489823275,1.00981682,87.598,87.571,11.41930547]
[1772489823872,1.00981682,87.598,87.58,10.7421747]
[1772489824407,1.00981682,87.598,87.572,1.01341675]
[1772489825080,1.00981682,87.598,87.571,39.96756916]
[1772489825976,1.00981682,87.597,87.571,11.41930547]
[1772489827277,1.00981682,87.597,87.561,12.43402638]
[1772489827968,1.00981682,87.597,87.562,1.01341675]
[1772489829488,1.00981682,87.597,87.57,10.7421747]
[1772489829685,1.00981682,87.597,87.571,1.01341675]
[1772489829986,1.00981682,87.606,87.58,11.75559145]
[1772489830284,1.00981682,87.606,87.581,1.01341675]
[1772489830785,1.00981682,87.605,87.581,1.01341675]
[1772489832184,1.00981682,87.603,87.58,10.7421747]
[1772489832587,1.00981682,87.603,87.58,4.00550587]
[1772489833792,1.00981682,87.603,87.582,1.01341675]
[1772489833995,1.00981682,87.623,87.6,4.00550587]
[1772489834186,1.00981682,87.623,87.597,1.01341675]
[1772489834390,1.00981682,87.621,87.59,4.00550587]
[1772489834695,1.00981682,87.621,87.59,5.01892262]
[1772489835277,1.00981682,87.621,87.591,1.01341675]
[1772489836496,12.42273624,87.62,87.593,1.01341675]
[1772489836674,1.00981682,87.619,87.593,1.01341675]
[1772489838478,1.00981682,87.619,87.595,1.13703355]
[1772489841395,1.00981682,87.619,87.596,11.41604639]
[1772489841998,1.11770499,87.617,87.584,12.55462532]
[1772489842195,11.41317994,87.618,87.578,11.41834675]
[1772489842196,1.11770499,87.609,87.578,11.41834675]
[1772489842598,1.11770499,87.599,87.562,1.13703355]
[1772489842981,1.11770499,87.599,87.571,1.13703355]
[1772489844302,1.11770499,87.597,87.571,1.13703355]
[1772489845078,0.28432314,87.607,87.573,1.13703355]
[1772489845283,1.11770499,87.619,87.591,1.13703355]
[1772489846291,1.11770499,87.617,87.592,11.41656772]
[1772489848390,1.11770499,87.599,87.562,12.55751275]
[1772489848602,1.11770499,87.599,87.563,1.13703355]
[1772489849403,1.11770499,87.597,87.564,11.42021835]
[1772489849909,11.41578574,87.598,87.561,11.42060782]
[1772489849910,1.11770499,87.591,87.561,11.42060782]
[1772489850099,1.11770499,87.591,87.561,12.55764137]
[1772489850405,1.11770499,87.591,87.562,1.13703355]
[1772489851604,1.11770499,87.589,87.563,11.42034877]
[1772489851811,1.11770499,87.598,87.571,1.13703355]
[1772489852616,1.11770499,87.606,87.571,1.13703355]
[1772489852910,1.11770499,87.618,87.591,1.13703355]
[1772489853120,11.41278917,87.621,87.575,1.13703355]
[1772489853121,1.11770499,87.612,87.575,1.13703355]
[1772489853322,1.11770499,87.612,87.58,4.00550587]
[1772489853610,1.11770499,87.612,87.591,11.41669806]
[1772489855811,1.11770499,87.612,87.583,29.68131993]
[1772489856192,1.11770499,87.612,87.584,1.13703355]
[1772489858392,1.11770499,87.612,87.586,1.13703355]
[1772489859212,1.11770499,87.622,87.591,1.13703355]
[1772489865516,1.11770499,87.621,87.593,1.13703355]
[1772489867211,1.11770499,87.619,87.595,1.13703355]
[1772489867595,1.25578244,87.631,87.595,1.13703355]
[1772489868216,1.25578244,87.629,87.595,1.13703355]
[1772489870208,1.25578244,87.627,87.601,1.16207298]
[1772489872899,1.25578244,87.627,87.602,11.41526449]
[1772489876822,1.25578244,87.627,87.602,1.16207298]
[1772489878509,1.25578244,87.625,87.602,1.16207298]
[1772489879111,1.25578244,87.625,87.603,11.41513418]
[1772489879732,1.25578244,87.639,87.604,1.16207298]
[1772489880223,1.25578244,87.629,87.597,11.41591607]
[1772489880526,1.25578244,87.619,87.593,11.41641163]
[1772489880822,1.25578244,87.609,87.576,28.54647263]
[1772489881001,1.25578244,87.589,87.571,11.41930547]
[1772489881206,1.25578244,87.589,87.564,29.71243063]
[1772489881421,1.25578244,87.589,87.565,1.16207298]
[1772489882029,1.25578244,87.589,87.564,28.55035765]
[1772489882030,1.25578244,87.589,87.561,11.42060963]
[1772489882212,1.25578244,87.587,87.561,12.58268261]
[1772489884119,1.25578244,87.596,87.562,1.16207298]
[1772489884327,1.25578244,87.601,87.571,1.16207298]
[1772489884536,1.25578244,87.609,87.581,1.16207298]
[1772489886104,1.25578244,87.609,87.582,11.41787125]
[1772489886302,1.25578244,87.609,87.582,12.57994423]
[1772489887025,1.25578244,87.609,87.582,11.41787125]
[1772489887221,1.25578244,87.629,87.601,1.16207298]
[1772489887728,1.25578244,87.628,87.601,1.16207298]
[1772489887923,1.25578244,87.647,87.621,1.16207298]
[1772489888322,1.25578244,87.647,87.622,11.41265892]
[1772489888828,1.25578244,87.647,87.623,1.16207298]
[1772489891424,1.25578244,87.647,87.624,11.41239842]
[1772489892213,1.25578244,87.645,87.616,11.41344046]
[1772489892930,1.25578244,87.639,87.616,11.41344046]
[1772489894716,1.25578244,87.639,87.611,1.16207298]
[1772489898024,1.25578244,87.639,87.612,12.66463851]
[1772489898425,1.20416322,87.638,87.612,12.66463851]
[1772489899029,1.20416322,87.638,87.613,1.25067696]
[1772489901422,1.20416322,87.638,87.615,1.25067696]
[1772489904552,1.20416322,87.638,87.617,1.25067696]
[1772489905250,1.20416322,87.646,87.617,1.25067696]
[1772489907656,1.20416322,87.646,87.619,1.25067696]
[1772489908162,1.20416322,87.644,87.618,12.6638569]
[1772489908337,1.20416322,87.644,87.619,1.25067696]
[1772489908730,2.21738657,87.648,87.621,1.25067696]
[1772489908935,1.20416322,87.647,87.621,1.25067696]
[1772489909855,1.20416322,87.647,87.623,1.25067696]
[1772489910957,1.20416322,87.647,87.624,11.41239842]
[1772489911257,1.20416322,87.647,87.625,1.25067696]
[1772489913353,1.20416322,87.647,87.626,11.41213794]
[1772489913559,1.20416322,87.647,87.627,1.25067696]
[1772489914965,1.20416322,87.646,87.627,1.25067696]
[1772489916161,1.20416322,87.644,87.608,1.25067696]
[1772489916460,1.20416322,87.629,87.593,1.25067696]
[1772489917764,1.20416322,87.629,87.601,1.25067696]
[1772489918557,1.20416322,87.629,87.603,1.25067696]
[1772489919943,1.20416322,87.627,87.603,1.25067696]
[1772489924664,1.20416322,87.627,87.604,11.41500388]
[1772489924859,1.20416322,87.627,87.604,12.66568084]
[1772489925361,1.20416322,87.627,87.605,1.25067696]
[1772489925569,1.20416322,87.627,87.591,28.54174515]
[1772489925570,1.20416322,87.625,87.591,1.25067696]
[1772489926554,1.20416322,87.625,87.6,5.25420184]
[1772489926868,1.20416322,87.625,87.602,1.25067696]
[1772489927050,1.34632479,87.639,87.602,1.25067696]
[1772489928250,1.32851103,87.632,87.604,1.30474051]
[1772489931370,11.4114868,87.631,87.605,11.41487358]
[1772489931574,11.4114868,87.631,87.606,1.30474051]
[1772489931575,1.32851103,87.63,87.606,1.30474051]
[1772489933178,1.32851103,87.63,87.607,12.71935349]
[1772489933858,1.32851103,87.63,87.608,1.30474051]
[1772489934658,1.32851103,87.63,87.609,11.4143524]
[1772489936077,1.32851103,87.63,87.609,12.71909291]
[1772489937780,1.32851103,87.63,87.61,1.30474051]
[1772489937962,1.32851103,87.63,87.575,1.14187838]
[1772489937963,1.32851103,87.629,87.591,1.30474051]
[1772489938276,1.32851103,87.609,87.586,11.41725402]
[1772489939374,1.32851103,87.609,87.587,1.30474051]
[1772489940668,1.32851103,87.609,87.581,11.41800162]
[1772489940870,1.32851103,87.599,87.571,11.41930547]
[1772489941180,1.32851103,87.599,87.572,1.30474051]
[1772489943463,1.32851103,87.589,87.541,29.7002675]
[1772489943665,1.32851103,87.589,87.487,103.7]
[1772489943666,1.32851103,87.559,87.535,1.30474051]
[1772489943864,1.32851103,87.559,87.529,1.30474051]
[1772489944175,1.32851103,87.549,87.524,1.30474051]
[1772489945295,1.32851103,87.562,87.531,1.30474051]
[1772489945468,1.32851103,87.562,87.533,1.30474051]
[1772489948883,1.32851103,87.562,87.521,1.30474051]
[1772489949086,3.69383402,87.598,87.513,28.56706598]
[1772489949087,1.32851103,87.549,87.513,28.56706598]
[1772489949264,1.32851103,87.539,87.506,1.30474051]
[1772489949889,1.32851103,87.519,87.5,0.1]
[1772489950063,1.32851103,87.509,87.5,0.1]
[1772489950874,1.32851103,87.507,87.483,11.43069825]
[1772489951268,1.32851103,87.507,87.484,1.30474051]
[1772489952485,1.32851103,87.507,87.483,11.43069825]
[1772489952681,4.00352488,87.51,87.484,1.30474051]
[1772489952876,1.32851103,87.509,87.484,1.30474051]
[1772489953077,1.32851103,87.508,87.482,1.30474051]
[1772489954688,1.32851103,87.508,87.481,11.4310536]
[1772489955273,4.00352488,87.51,87.48,0.1]
[1772489955274,1.32851103,87.506,87.48,0.1]
[1772489955675,1.32851103,87.499,87.462,11.43353685]
[1772489955886,0.28432314,87.488,87.451,27.79337544]
[1772489956095,1.32851103,87.479,87.451,11.43492406]
[1772489957387,1.29584296,87.478,87.445,11.43575962]
[1772489957688,1.29584296,87.478,87.451,1.29693629]
[1772489958595,1.29584296,87.478,87.45,4.00352488]
[1772489958778,1.3191561,87.516,87.461,1.29693629]
[1772489958971,1.3191561,87.509,87.471,1.29693629]
[1772489959169,0.28432314,87.508,87.471,1.29693629]
[1772489959475,1.3191561,87.501,87.48,4.00352488]
[1772489959681,11.42844528,87.501,87.48,4.00352488]
[1772489959888,1.3191561,87.5,87.48,4.00352488]
[1772489960999,1.3191561,87.5,87.472,11.43222974]
[1772489961305,1.3191561,87.5,87.471,1.29693629]
[1772489961477,1.3191561,87.5,87.48,4.00352488]
[1772489962171,1.3191561,87.498,87.48,4.00352488]
[1772489962377,1.3191561,87.498,87.472,11.43222974]
[1772489964778,1.3191561,87.522,87.491,1.29693629]
[1772489965087,1.3191561,87.522,87.5,5.30046117]
[1772489965602,1.3191561,87.522,87.51,4.00352488]
[1772489966394,1.3191561,87.529,87.51,4.00352488]
[1772489968194,1.3191561,87.527,87.51,4.00352488]
[1772489968901,1.3191561,87.527,87.501,11.42838543]
[1772489969529,1.3191561,87.527,87.491,11.42973254]
[1772489970006,1.3191561,87.521,87.491,11.42973254]
[1772489970510,1.3191561,87.519,87.492,1.29693629]
[1772489970814,1.3191561,87.519,87.48,4.00352488]
[1772489970985,1.3191561,87.519,87.481,1.29693629]
[1772489971587,1.3191561,87.519,87.49,5.30046117]
[1772489972583,1.3191561,87.517,87.491,11.42974705]
[1772489972790,1.3191561,87.533,87.501,1.29693629]
[1772489973304,1.3191561,87.531,87.501,1.29693629]
[1772489973689,1.3191561,87.531,87.491,11.42974705]
[1772489973690,0.28432314,87.544,87.52,4.00352488]
[1772489973897,1.3191561,87.544,87.52,4.00352488]
[1772489974203,1.3191561,87.542,87.519,1.29693629]
[1772489974391,1.3191561,87.542,87.511,1.29693629]
[1772489977713,1.3191561,87.542,87.521,1.29693629]
[1772489977919,1.3191561,87.555,87.531,1.29693629]
[1772489980616,1.3191561,87.555,87.532,11.42439336]
[1772489981316,1.3191561,87.573,87.55,4.0097697]
[1772489981522,1.60347924,87.572,87.55,4.0097697]
[1772489982713,12.73846157,87.571,87.548,1.29693629]
[1772489983909,1.3191561,87.57,87.546,11.42244633]
[1772489985214,1.3191561,87.57,87.542,11.42308834]
[1772489985415,11.41956628,87.569,87.542,12.72002463]
[1772489985617,1.3191561,87.568,87.542,12.72002463]
[1772489988125,1.25206726,87.566,87.533,1.14242628]
[1772489988317,1.25206726,87.566,87.53,4.0097697]
[1772489989324,1.25206726,87.566,87.534,11.42413233]
[1772489989543,1.25206726,87.566,87.54,4.0097697]
[1772489989722,1.25206726,87.566,87.541,12.63634899]
[1772489992105,1.25206726,87.564,87.541,11.42321883]
[1772489993330,1.25206726,87.564,87.541,12.63634899]
[1772489994129,1.25206726,87.564,87.542,1.21313016]
[1772489994809,1.25206726,87.564,87.541,11.42321883]
[1772489995010,1.25206726,87.564,87.541,12.63634899]
[1772489995328,1.25206726,87.564,87.542,1.21313016]
[1772489995932,4.0097697,87.58,87.541,11.42321883]
[1772489995933,1.25206726,87.591,87.551,1.21313016]
[1772489996117,1.25206726,87.597,87.571,1.21313016]
[1772489996433,57.0651977,87.62,87.552,11.42178362]
[1772489996434,1.25206726,87.581,87.552,11.42178362]
[1772489997333,1.25206726,87.581,87.552,12.63491378]
[1772489998115,11.41813199,87.58,87.552,12.63491378]
[1772489998311,1.25206726,87.579,87.55,4.0097697]
[1772489998626,1.25206726,87.571,87.54,4.0097697]
[1772489999629,0.2,87.59,87.55,4.0097697]
[1772489999633,1.25206726,87.569,87.55,4.0097697]
[1772490000220,0.2,87.59,87.561,1.21313016]
[1772490000423,1.25206726,87.629,87.581,1.21313016]
[1772490000634,4.2097697,87.66,87.62,4.0097697]
[1772490000934,0.28432314,87.646,87.62,4.0097697]
[1772490001324,39.9329127,87.647,87.62,4.0097697]
[1772490001527,39.9329127,87.647,87.615,11.41357073]
[1772490001734,0.28432314,87.646,87.616,1.21313016]
[1772490001917,39.9329127,87.647,87.616,1.21313016]
[1772490002122,0.28432314,87.646,87.616,1.21313016]
[1772490002535,0.28432314,87.646,87.621,1.21313016]
[1772490002713,11.40940363,87.647,87.621,1.21313016]
[1772490002920,1.25206726,87.646,87.621,1.21313016]
[1772490003126,0.28432314,87.645,87.621,1.21313016]
[1772490004035,1.01322335,87.648,87.56,4.0097697]
[1772490004036,1.25206726,87.629,87.589,1.21313016]
[1772490004343,0.28432314,87.624,87.585,1.21313016]
[1772490004529,0.28432314,87.624,87.584,11.41761052]
[1772490004530,1.5363904,87.639,87.601,1.21313016]
[1772490004724,4.82477569,87.638,87.593,1.21313016]
[1772490004925,1.5363904,87.629,87.593,1.21313016]
[1772490005244,1.25206726,87.619,87.584,11.41761052]
[1772490005538,1.25206726,87.619,87.59,4.0097697]
[1772490005933,12.6642052,87.626,87.6,4.0097697]
[1772490006137,1.25206726,87.641,87.611,1.21313016]
[1772490008128,1.25206726,87.641,87.611,12.62713497]
[1772490008129,11.41031492,87.64,87.611,12.62713497]
[1772490008345,1.25206726,87.639,87.611,12.62713497]
[1772490008741,1.25206726,87.639,87.612,1.21313016]
[1772490009622,11.41057532,87.638,87.613,11.41383128]
[1772490009929,11.41057532,87.638,87.614,1.21313016]
[1772490011331,1.25206726,87.637,87.613,11.41383128]
[1772490011834,1.25206726,87.637,87.613,12.62696144]
[1772490012040,11.41083572,87.636,87.613,12.62696144]
[1772490013243,1.5363904,87.645,87.614,1.21313016]
[1772490015127,1.5363904,87.645,87.615,11.41357073]
[1772490015729,1.5363904,87.643,87.615,11.41357073]
[1772490016437,1.5363904,87.643,87.615,12.62670089]
[1772490017723,4.0097697,87.64,87.615,12.62670089]
[1772490017932,1.25050848,87.638,87.615,12.62670089]
[1772490018753,1.25050848,87.638,87.611,11.41402203]
[1772490018936,11.41044512,87.639,87.574,1.22654175]
[1772490018937,0.28432314,87.612,87.574,1.22654175]
[1772490019254,4.0097697,87.59,87.566,1.22654175]
[1772490019635,4.0097697,87.6,87.566,1.22654175]
[1772490020256,4.0097697,87.6,87.568,1.22654175]
[1772490020835,11.41565542,87.599,87.568,1.22654175]
[1772490021341,4.0097697,87.6,87.568,1.22654175]
[1772490021547,11.41467482,87.607,87.571,1.22654175]
[1772490021932,1.25050848,87.606,87.571,1.22654175]
[1772490022256,4.0097697,87.6,87.571,1.22654175]
[1772490024429,1.25050848,87.604,87.573,1.22654175]
[1772490025052,1.25050848,87.589,87.567,11.41974395]
[1772490025542,1.25050848,87.589,87.567,12.6462857]
[1772490027080,1.25050848,87.589,87.568,1.22654175]
[1772490029336,1.25050848,87.596,87.57,1.22654175]
[1772490030635,28.53718395,87.605,87.569,11.41956628]
[1772490030636,1.25050848,87.626,87.59,4.0097697]
[1772490030944,11.41096593,87.635,87.611,1.22654175]
[1772490031342,0.28432314,87.634,87.611,1.22654175]
[1772490031541,1.53483162,87.632,87.601,1.22654175]
[1772490031752,1.25050848,87.632,87.601,1.22654175]
[1772490033153,11.4114868,87.631,87.601,1.22654175]
[1772490034149,1.25050848,87.629,87.601,1.22654175]
[1772490034356,4.0097697,87.62,87.593,1.22654175]
[1772490035243,5.26027818,87.63,87.593,1.22654175]
[1772490035436,12.66225573,87.629,87.595,1.22654175]
[1772490035856,1.25050848,87.628,87.595,1.22654175]
[1772490040569,1.25050848,87.626,87.597,1.22654175]
[1772490040750,11.41128143,87.633,87.601,1.22654175]
[1772490041063,1.25050848,87.632,87.601,1.22654175]
[1772490041770,1.25050848,87.629,87.596,11.41604639]
[1772490041971,1.25050848,87.619,87.596,11.41604639]
[1772490044641,1.25050848,87.619,87.597,1.22654175]
[1772490044948,12.6628294,87.625,87.597,1.22654175]
[1772490045148,1.25050848,87.625,87.597,1.22654175]
[1772490046144,1.25050848,87.625,87.598,11.41578574]
[1772490046344,1.25050848,87.625,87.599,1.22654175]
[1772490046668,4.00428277,87.64,87.601,1.22654175]
[1772490046970,1.25050848,87.641,87.611,1.22654175]
[1772490047852,11.41047448,87.639,87.613,1.2166328]
[1772490048253,1.19716113,87.638,87.613,1.2166328]
[1772490049065,5.2014439,87.65,87.613,1.2166328]
[1772490049368,1.19716113,87.646,87.613,1.2166328]
[1772490049970,12.60682511,87.645,87.615,1.2166328]
[1772490050143,1.19716113,87.644,87.615,1.2166328]
[1772490051358,4.00428277,87.62,87.595,1.2166328]
[1772490052167,11.41304968,87.619,87.595,1.2166328]
[1772490052869,12.61021081,87.619,87.595,1.2166328]
[1772490054076,12.61047133,87.617,87.595,1.2166328]
[1772490054566,11.4133102,87.617,87.595,1.2166328]
[1772490054872,1.19716113,87.616,87.595,1.2166328]
[1772490055666,4.00428277,87.62,87.595,1.2166328]
[1772490055871,11.41174725,87.629,87.601,1.2166328]
[1772490056166,4.00428277,87.64,87.603,1.2166328]
[1772490056368,1.19716113,87.639,87.603,1.2166328]
[1772490056554,11.41044512,87.639,87.603,1.2166328]
[1772490056753,1.19716113,87.638,87.603,1.2166328]
[1772490058856,11.41023154,87.641,87.611,1.2166328]
[1772490059057,1.19716113,87.647,87.611,1.2166328]
[1772490059778,1.19716113,87.644,87.611,1.2166328]
[1772490060349,1.19716113,87.639,87.611,1.2166328]
[1772490062173,4.00428277,87.64,87.613,1.2166328]
[1772490062349,11.40990188,87.644,87.613,1.2166328]
[1772490062555,1.19716113,87.643,87.613,1.2166328]
[1772490065358,11.41005454,87.642,87.615,1.2166328]
[1772490066376,11.41005454,87.642,87.617,1.2166328]
[1772490067280,12.42260289,87.648,87.617,1.2166328]
[1772490069775,12.42260289,87.648,87.619,1.2166328]
[1772490071076,13.61976402,87.648,87.619,1.2166328]
[1772490071378,4.00428277,87.64,87.619,1.2166328]
[1772490072286,1.19716113,87.629,87.606,1.2166328]
[1772490072656,4.00428277,87.63,87.606,1.2166328]
[1772490074083,1.19716113,87.635,87.579,3.69383402]
[1772490074084,11.41109614,87.634,87.608,1.2166328]
[1772490074566,11.41067869,87.638,87.608,1.2166328]
[1772490074773,1.01322335,87.648,87.621,1.2166328]
[1772490075762,1.19716113,87.639,87.61,1.2166328]
[1772490075966,11.41057532,87.638,87.611,11.41409183]
[1772490076279,1.19716113,87.637,87.612,1.2166328]
[1772490078084,1.27048511,87.635,87.605,1.18007683]
[1772490078580,1.27048511,87.635,87.607,1.18007683]
[1772490081166,1.01322335,87.648,87.621,1.18007683]
[1772490081471,1.01322335,87.648,87.608,39.95068942]
[1772490081472,0.2,87.66,87.631,1.18007683]
[1772490081682,0.2,87.66,87.641,1.18007683]
[1772490082395,11.40784175,87.659,87.641,1.18007683]
[1772490084387,0.2,87.66,87.641,1.18007683]
[1772490084600,0.2,87.66,87.631,1.14114868]
[1772490084601,1.27048511,87.659,87.631,1.14114868]
[1772490084893,1.27048511,87.659,87.626,1.18007683]
[1772490085081,1.27048511,87.659,87.628,1.18007683]
[1772490085278,1.27048511,87.657,87.628,1.18007683]
[1772490087479,11.40784175,87.659,87.631,1.18007683]
[1772490087988,0.2,87.66,87.641,1.18007683]
[1772490088790,11.40784175,87.659,87.641,1.18007683]
[1772490088989,0.2,87.66,87.641,1.18007683]
[1772490090590,0.2,87.66,87.642,1.18007683]
[1772490090798,11.40784175,87.659,87.642,1.18007683]
[1772490091001,1.27048511,87.658,87.632,1.18007683]
[1772490091299,1.27048511,87.649,87.621,1.18007683]
[1772490091806,11.40927345,87.648,87.622,1.18007683]
[1772490095280,1.27048511,87.648,87.622,1.18007683]
[1772490096802,1.27048511,87.658,87.624,1.18007683]
[1772490102603,1.27048511,87.656,87.626,1.18007683]
[1772490105801,12.67884743,87.655,87.626,1.18007683]
[1772490106618,11.40836232,87.655,87.628,1.18007683]
[1772490108013,11.40784175,87.659,87.63,1.19753858]
[1772490108394,12.5410752,87.659,87.63,1.19753858]
[1772490108603,1.13323345,87.658,87.63,1.19753858]
[1772490109810,11.40784175,87.659,87.632,1.19753858]
[1772490110026,1.13323345,87.658,87.632,1.19753858]
[1772490112317,0.2,87.67,87.651,1.19753858]
[1772490112628,12.53587202,87.699,87.661,1.19753858]
[1772490112810,1.13323345,87.698,87.661,1.19753858]
[1772490113015,28.50719854,87.698,87.661,1.19753858]
[1772490113215,1.13323345,87.679,87.642,1.19753858]
[1772490113521,1.13323345,87.679,87.641,1.14101847]
[1772490113713,1.13323345,87.659,87.614,1.19753858]
[1772490114022,1.13323345,87.657,87.614,1.19753858]
[1772490114203,1.13323345,87.653,87.616,1.19753858]
[1772490114604,1.13323345,87.653,87.62,4.00126384]
[1772490114823,1.13323345,87.653,87.621,1.19753858]
[1772490116229,11.40758147,87.661,87.631,1.19753858]
[1772490116411,11.40758147,87.661,87.633,1.19753858]
[1772490117221,1.13323345,87.66,87.633,1.19753858]
[1772490119117,1.13323345,87.671,87.641,1.19753858]
[1772490119318,1.13323345,87.669,87.634,11.41109614]
[1772490119632,1.13323345,87.669,87.635,1.19753858]
[1772490120228,1.13323345,87.677,87.648,1.19753858]
[1772490120411,1.13323345,87.675,87.648,1.19753858]
[1772490120613,1.13323345,87.675,87.641,1.19753858]
[1772490120820,1.13323345,87.674,87.641,1.19753858]
[1772490121224,40.19446829,87.697,87.64,4.00126384]
[1772490121225,1.14101847,87.696,87.661,1.19753858]